[Event "POL-chT 2 Liga 2019"]
[Site "Poronin"]
[Date "2019.09.07"]
[Round "1.3"]
[White "Wisniewski, Michal"]
[Black "Tymrakiewicz, Rafal"]
[Result "1-0"]
[ECO "A05"]
[WhiteElo "2130"]
[BlackElo "2257"]
[Annotator "ChessBase"]
[PlyCount "117"]
[EventDate "2019.09.07"]
[EventType "team-tourn"]
[EventCountry "POL"]
[SourceTitle "playchess.com"]
[Source "ChessBase"]
[SourceQuality "1"]
[TimeControl "40/5400+30:1800+30"]

1. Nf3 {[%emt 0:01:23]} Nf6 {[%emt 0:02:29]} 2. c4 {[%emt 0:00:08]} d6 {[%emt 0:03:01]} 3. g3 {[%emt 0:02:19]} g6 {[%emt 0:02:46]} 4. Bg2 {[%emt 0:00:20]} Bg7 {[%emt 0:00:05]} 5. O-O {[%emt 0:00:06]} O-O {[%emt 0:00:25]} 6. Nc3 {[%emt 0:00:05]} e5 {[%emt 0:05:10]} 7. d3 {[%emt 0:00:05]} Nh5 {[%emt 0:03:58]} 8. Rb1 {[%emt 0:13:14]} f5 {[%emt 0:08:24]} 9. Qb3 {[%emt 0:00:10]} Kh8 {[%emt 0:10:51]} 10. c5 {[%emt 0:01:07]} c6 {[%emt 0:18:41]} 11. cxd6 {[%emt 0:07:25]} Qxd6 {[%emt 0:00:23]} 12. Nd2 {[%emt 0:02:13]} Na6 {[%emt 0:08:39]} 13. Nc4 {[%emt 0:04:18]} Qe7 {[%emt 0:00:13]} 14. Bd2 {[%emt 0:03:21]} Be6 {[%emt 0:02:55]} 15. Qa3 {[%emt 0:00:25]} Qd7 {[%emt 0:05:44]} 16. Rfd1 {[%emt 0:05:19]} Nc7 {[%emt 0:05:02]} 17. b4 {[%emt 0:04:52]} h6 {[%emt 0:06:47]} 18. Qc1 {[%emt 0:06:48]} Kh7 {[%emt 0:03:52]} 19. Na4 {[%emt 0:00:11]} Na6 {[%emt 0:05:44]} 20. Nc5 {[%emt 0:00:27]} Nxc5 {[%emt 0:00:04]} 21. bxc5 {[%emt 0:00:05]} Bd5 {[%emt 0:04:31]} 22. e4 {[%emt 0:05:42]} Bxc4 {[%emt 0:00:11]} 23. dxc4 {[%emt 0:00:24]} Qe7 {[%emt 0:00:58]} 24. exf5 {[%emt 0:00:13]} gxf5 {[%emt 0:00:13]} 25. Bc3 {[%emt 0:02:52]} Rf7 {[%emt 0:00:20]} 26. Rd6 {[%emt 0:00:18]} Raf8 {[%emt 0:00:57]} 27. Qc2 {[%emt 0:05:21]} e4 {[%emt 0:00:22]} 28. f3 {[%emt 0:01:54]} exf3 {[%emt 0:00:42]} 29. Re1 {[%emt 0:00:57]} Qg5 {[%emt 0:00:16]} 30. Bxf3 {[%emt 0:00:32]} Nxg3 {[%emt 0:00:44]} 31. Bd2 {[%emt 0:00:34]} Qh4 {[%emt 0:00:21]} 32. hxg3 {[%emt 0:00:22]} Qxg3+ {[%emt 0:00:22]} 33. Bg2 {[%emt 0:00:04]} Rf6 {[%emt 0:00:39]} 34. Qd3 {[%emt 0:01:39]} Qh4 {[%emt 0:00:17]} 35. Re7 {[%emt 0:04:01]} R8f7 {[%emt 0:00:47]} 36. Rxf7 {[%emt 0:00:32]} Rxf7 {[%emt 0:00:13]} 37. Qh3 {[%emt 0:01:03]} Bd4+ {[%emt 0:00:20]} 38. Kh1 {[%emt 0:00:16]} Qxh3+ {[%emt 0:00:10]} 39. Bxh3 {[%emt 0:00:01]} Bxc5 {[%emt 0:00:14]} 40. Rxh6+ {[%emt 0:00:00]} Kg7 {[%emt 0:00:00]} 41. Re6 {[%emt 0:00:14]} Bd4 {[%emt 0:02:25]} 42. Kg2 {[%emt 0:01:15]} Bf6 {[%emt 0:07:20]} 43. Bxf5 {[%emt 0:02:16]} Rf8 {[%emt 0:01:23]} 44. Rd6 {[%emt 0:02:11]} Rd8 {[%emt 0:01:17]} 45. Rxd8 {[%emt 0:00:13]} Bxd8 {[%emt 0:00:02]} 46. Bc8 {[%emt 0:00:25]} b5 {[%emt 0:02:23]} 47. c5 {[%emt 0:00:04]} Be7 {[%emt 0:00:22]} 48. Be3 {[%emt 0:00:04]} Kf6 {[%emt 0:00:51]} 49. Bd7 {[%emt 0:00:04]} Ke5 {[%emt 0:00:29]} 50. Bxc6 {[%emt 0:00:02]} b4 {[%emt 0:00:04]} 51. Kf3 {[%emt 0:00:05]} a5 {[%emt 0:00:33]} 52. Ke2 {[%emt 0:00:26]} Bh4 {[%emt 0:03:31]} 53. Kd3 {[%emt 0:00:07]} Be1 {[%emt 0:00:05]} 54. Bd4+ {[%emt 0:00:21]} Ke6 {[%emt 0:00:09]} 55. Kc4 {[%emt 0:00:04]} Bd2 {[%emt 0:00:11]} 56. Bd5+ {[%emt 0:00:26]} Kd7 {[%emt 0:00:02]} 57. Be5 {[%emt 0:00:11]} a4 {[%emt 0:01:30]} 58. c6+ {[%emt 0:00:05]} Ke7 {[%emt 0:01:17]} 59. c7 {[%emt 0:00:04]} 1-0

[Event "POL-chT 2 Liga 2019"]
[Site "Poronin"]
[Date "2019.09.07"]
[Round "1.4"]
[White "Szoen, Dariusz"]
[Black "Adamczewski, Maciej"]
[Result "1-0"]
[ECO "C11"]
[WhiteElo "2415"]
[BlackElo "2109"]
[Annotator "ChessBase"]
[PlyCount "57"]
[EventDate "2019.09.07"]
[EventType "team-tourn"]
[EventCountry "POL"]
[SourceTitle "playchess.com"]
[Source "ChessBase"]
[SourceQuality "1"]
[TimeControl "40/5400+30:1800+30"]

1. e4 {[%emt 0:01:13]} e6 {[%emt 0:00:00]} 2. d4 {[%emt 0:00:24]} d5 {[%emt 0:00:00]} 3. Nc3 {[%emt 0:00:07]} Nf6 {[%emt 0:00:07]} 4. e5 {[%emt 0:00:31]} Nfd7 {[%emt 0:00:10]} 5. f4 {[%emt 0:00:30]} c5 {[%emt 0:00:23]} 6. Nf3 {[%emt 0:00:08]} Nc6 {[%emt 0:00:24]} 7. Be3 {[%emt 0:00:26]} Be7 {[%emt 0:00:14]} 8. Qd2 {[%emt 0:00:11]} O-O {[%emt 0:00:11]} 9. O-O-O {[%emt 0:02:55]} c4 {[%emt 0:06:11]} 10. f5 {[%emt 0:03:07]} b5 {[%emt 0:00:53]} 11. g4 {[%emt 0:19:05]} b4 {[%emt 0:00:17]} 12. Ne2 {[%emt 0:01:23]} c3 {[%emt 0:15:44]} 13. Qe1 {[%emt 0:00:07]} cxb2+ {[%emt 0:01:40]} 14. Kb1 {[%emt 0:00:10]} Nb6 {[%emt 0:00:13]} 15. Nf4 {[%emt 0:07:43]} Na4 {[%emt 0:06:40]} 16. Bd2 {[%emt 0:00:59]} Qa5 {[%emt 0:01:03]} 17. f6 {[%emt 0:18:12]} Nc3+ {[%emt 0:11:28]} 18. Bxc3 {[%emt 0:00:43]} bxc3 {[%emt 0:00:03]} 19. Ne2 {[%emt 0:00:32]} Bb4 {[%emt 0:02:23]} 20. Qh4 {[%emt 0:02:32]} Re8 {[%emt 0:07:53]} 21. Ng5 {[%emt 0:03:24]} h6 {[%emt 0:00:52]} 22. Nxf7 {[%emt 0:01:32]} Qc7 {[%emt 0:14:27]} 23. Nxh6+ {[%emt 0:05:30]} gxh6 {[%emt 0:00:17]} 24. Nf4 {[%emt 0:01:58]} Bf8 {[%emt 0:07:04]} 25. Qh5 {[%emt 0:05:44]} Qf7 {[%emt 0:03:23]} 26. Bd3 {[%emt 0:00:04]} Qxh5 {[%emt 0:01:52]} 27. gxh5 {[%emt 0:00:04]} Ba3 {[%emt 0:00:12]} 28. Rhg1+ {[%emt 0:00:15]} Kf8 {[%emt 0:00:15]} 29. Rg7 {[%emt 0:00:24]} 1-0

[Event "POL-chT 2 Liga 2019"]
[Site "Poronin"]
[Date "2019.09.07"]
[Round "1.5"]
[White "Tabola, Marcin"]
[Black "Gmaj, Krzysztof"]
[Result "1/2-1/2"]
[ECO "C03"]
[WhiteElo "2003"]
[BlackElo "2120"]
[Annotator "ChessBase"]
[PlyCount "46"]
[EventDate "2019.09.07"]
[EventType "team-tourn"]
[EventCountry "POL"]
[SourceTitle "playchess.com"]
[Source "ChessBase"]
[SourceQuality "1"]
[TimeControl "40/5400+30:1800+30"]

1. e4 {[%emt 0:00:00]} e6 {[%emt 0:00:21]} 2. d4 {[%emt 0:00:00]} d5 {[%emt 0:00:06]} 3. Nd2 {[%emt 0:00:00]} h6 {[%emt 0:01:40]} 4. Bd3 {[%emt 0:02:20]} Nf6 {[%emt 0:00:30]} 5. Ngf3 {[%emt 0:00:18]} c5 {[%emt 0:02:13]} 6. exd5 {[%emt 0:03:15]} exd5 {[%emt 0:02:23]} 7. Qe2+ {[%emt 0:00:58]} Be7 {[%emt 0:04:29]} 8. dxc5 {[%emt 0:06:20]} O-O {[%emt 0:02:10]} 9. O-O {[%emt 0:05:22]} Bxc5 {[%emt 0:04:09]} 10. Nb3 {[%emt 0:01:09]} Re8 {[%emt 0:03:02]} 11. Qd2 {[%emt 0:03:10]} Bb6 {[%emt 0:03:35]} 12. Re1 {[%emt 0:11:41]} Ne4 {[%emt 0:17:36]} 13. Bxe4 {[%emt 0:00:44]} dxe4 {[%emt 0:01:19]} 14. Nfd4 {[%emt 0:01:05]} Nd7 {[%emt 0:03:28]} 15. Nb5 {[%emt 0:06:45]} Nf6 {[%emt 0:03:06]} 16. c4 {[%emt 0:05:38]} Qe7 {[%emt 0:09:05]} 17. Qd6 {[%emt 0:09:34]} Bd7 {[%emt 0:08:26]} 18. a4 {[%emt 0:09:24]} Be6 {[%emt 0:09:48]} 19. a5 {[%emt 0:10:02]} Bd8 {[%emt 0:01:11]} 20. N3d4 {[%emt 0:04:35]} Bxc4 {[%emt 0:01:04]} 21. Qg3 {[%emt 0:00:16]} Nh5 {[%emt 0:05:47]} 22. Qg4 {[%emt 0:01:47]} Nf6 {[%emt 0:05:47]} 23. Qg3 {[%emt 0:00:43]} Nh5 {[%emt 0:00:45]} 1/2-1/2

[Event "POL-chT 2 Liga 2019"]
[Site "Poronin"]
[Date "2019.09.07"]
[Round "1.6"]
[White "Kubicka, Anna"]
[Black "Poznanska, Katarzyna"]
[Result "1-0"]
[ECO "B42"]
[WhiteElo "2225"]
[BlackElo "2082"]
[Annotator "ChessBase"]
[PlyCount "41"]
[EventDate "2019.09.07"]
[EventType "team-tourn"]
[EventCountry "POL"]
[SourceTitle "playchess.com"]
[Source "ChessBase"]
[SourceQuality "1"]
[TimeControl "40/5400+30:1800+30"]

1. e4 {[%emt 0:00:00]} c5 {[%emt 0:00:00]} 2. Nf3 {[%emt 0:00:00]} e6 {[%emt 0:00:00]} 3. d4 {[%emt 0:00:00]} cxd4 {[%emt 0:00:00]} 4. Nxd4 {[%emt 0:00:00]} a6 {[%emt 0:00:00]} 5. Bd3 {[%emt 0:00:00]} Qc7 {[%emt 0:00:03]} 6. O-O {[%emt 0:00:10]} Nf6 {[%emt 0:00:10]} 7. Qe2 {[%emt 0:00:08]} d6 {[%emt 0:00:09]} 8. c4 {[%emt 0:00:10]} Be7 {[%emt 0:00:11]} 9. Nc3 {[%emt 0:00:07]} b6 {[%emt 0:00:22]} 10. Be3 {[%emt 0:00:48]} Nbd7 {[%emt 0:01:12]} 11. f4 {[%emt 0:01:57]} O-O {[%emt 0:01:29]} 12. g4 {[%emt 0:00:36]} Nc5 {[%emt 0:08:22]} 13. g5 {[%emt 0:01:44]} Nh5 {[%emt 0:47:54]} 14. Qxh5 {[%emt 0:05:11]} Nxd3 {[%emt 0:00:03]} 15. Rf3 {[%emt 0:16:41]} g6 {[%emt 0:02:31]} 16. Qh6 {[%emt 0:02:08]} f6 {[%emt 0:15:31]} 17. f5 {[%emt 0:03:38]} fxg5 {[%emt 0:14:11]} 18. fxg6 {[%emt 0:02:58]} Bf6 {[%emt 0:02:33]} 19. Rxf6 {[%emt 0:02:12]} Rxf6 {[%emt 0:00:27]} 20. gxh7+ {[%emt 0:00:07]} Qxh7 {[%emt 0:01:18]} 21. Qxf6 {[%emt 0:00:11]} 1-0

[Event "POL-chT 2 Liga 2019"]
[Site "Poronin"]
[Date "2019.09.07"]
[Round "1.8"]
[White "Szadkowski, Kamil"]
[Black "Piotrowski, Przemyslaw"]
[Result "1-0"]
[ECO "B67"]
[WhiteElo "2245"]
[BlackElo "2293"]
[Annotator "ChessBase"]
[PlyCount "53"]
[EventDate "2019.09.07"]
[EventType "team-tourn"]
[EventCountry "POL"]
[SourceTitle "playchess.com"]
[Source "ChessBase"]
[SourceQuality "1"]
[TimeControl "40/5400+30:1800+30"]

1. e4 {[%emt 0:00:00]} c5 {[%emt 0:00:00]} 2. Nf3 {[%emt 0:00:00]} Nc6 {[%emt 0:00:03]} 3. d4 {[%emt 0:00:08]} cxd4 {[%emt 0:00:11]} 4. Nxd4 {[%emt 0:00:02]} Nf6 {[%emt 0:00:08]} 5. Nc3 {[%emt 0:00:05]} d6 {[%emt 0:00:04]} 6. Bg5 {[%emt 0:01:46]} e6 {[%emt 0:00:07]} 7. Qd2 {[%emt 0:02:30]} a6 {[%emt 0:00:41]} 8. O-O-O {[%emt 0:01:31]} Bd7 {[%emt 0:00:05]} 9. f4 {[%emt 0:01:45]} b5 {[%emt 0:00:35]} 10. Bxf6 {[%emt 0:03:03]} gxf6 {[%emt 0:00:05]} 11. Kb1 {[%emt 0:00:05]} Qb6 {[%emt 0:00:06]} 12. Nxc6 {[%emt 0:01:20]} Bxc6 {[%emt 0:00:08]} 13. f5 {[%emt 0:03:04]} Qc5 {[%emt 0:05:14]} 14. Bd3 {[%emt 0:00:55]} h5 {[%emt 0:00:23]} 15. fxe6 {[%emt 0:00:09]} fxe6 {[%emt 0:00:05]} 16. Qe1 {[%emt 0:00:03]} Qe5 {[%emt 0:00:27]} 17. Nd5 {[%emt 0:00:13]} O-O-O {[%emt 1:02:46]} 18. Qa5 {[%emt 0:01:29]} exd5 {[%emt 0:05:04]} 19. exd5 {[%emt 0:00:14]} Qxd5 {[%emt 0:16:52]} 20. c4 {[%emt 0:00:11]} Qc5 {[%emt 0:01:05]} 21. b4 {[%emt 0:19:02]} Qa7 {[%emt 0:01:17]} 22. cxb5 {[%emt 0:01:27]} Qc7 {[%emt 0:00:14]} 23. b6 {[%emt 0:04:40]} Qd7 {[%emt 0:05:14]} 24. Bf5 {[%emt 0:00:24]} Be4+ {[%emt 0:00:04]} 25. Bxe4 {[%emt 0:00:07]} Qb5 {[%emt 0:00:06]} 26. b7+ {[%emt 0:00:16]} Kd7 {[%emt 0:00:15]} 27. Bf5+ {[%emt 0:00:36]} 1-0

[Event "POL-chT 2 Liga 2019"]
[Site "Poronin"]
[Date "2019.09.07"]
[Round "1.9"]
[White "Fudalej, Michal"]
[Black "Szadkowski, Krzysztof"]
[Result "1/2-1/2"]
[ECO "A05"]
[WhiteElo "2235"]
[BlackElo "2138"]
[Annotator "ChessBase"]
[PlyCount "35"]
[EventDate "2019.09.07"]
[EventType "team-tourn"]
[EventCountry "POL"]
[SourceTitle "playchess.com"]
[Source "ChessBase"]
[SourceQuality "1"]
[TimeControl "40/5400+30:1800+30"]

1. Nf3 {[%emt 0:00:59]} Nf6 {[%emt 0:00:00]} 2. g3 {[%emt 0:00:02]} g6 {[%emt 0:00:00]} 3. Bg2 {[%emt 0:00:03]} Bg7 {[%emt 0:00:00]} 4. c4 {[%emt 0:00:05]} c5 {[%emt 0:00:29]} 5. Nc3 {[%emt 0:00:25]} d5 {[%emt 0:01:25]} 6. Qa4+ {[%emt 0:03:48]} Bd7 {[%emt 0:03:58]} 7. Qb3 {[%emt 0:01:54]} dxc4 {[%emt 0:12:16]} 8. Qxc4 {[%emt 0:02:03]} Qc8 {[%emt 0:00:33]} 9. d4 {[%emt 0:16:36]} cxd4 {[%emt 0:14:43]} 10. Qxc8+ {[%emt 0:00:58]} Bxc8 {[%emt 0:00:06]} 11. Nb5 {[%emt 0:00:25]} Na6 {[%emt 0:10:52]} 12. Nfxd4 {[%emt 0:00:52]} O-O {[%emt 0:02:51]} 13. Bf4 {[%emt 0:13:58]} Ne8 {[%emt 0:11:10]} 14. Bg5 {[%emt 0:04:59]} e5 {[%emt 0:03:57]} 15. Nb3 {[%emt 0:06:41]} Nac7 {[%emt 0:06:37]} 16. Nxc7 {[%emt 0:03:42]} Nxc7 {[%emt 0:00:06]} 17. Nc5 {[%emt 0:00:17]} Ne6 {[%emt 0:06:25]} 18. Nxe6 {[%emt 0:02:18]} 1/2-1/2

[Event "POL-chT 2 Liga 2019"]
[Site "Poronin"]
[Date "2019.09.07"]
[Round "1.10"]
[White "Leskiewicz, Ignacy"]
[Black "Maciol, Ryszard"]
[Result "1-0"]
[ECO "C06"]
[WhiteElo "2116"]
[BlackElo "2165"]
[Annotator "ChessBase"]
[PlyCount "93"]
[EventDate "2019.09.07"]
[EventType "team-tourn"]
[EventCountry "POL"]
[SourceTitle "playchess.com"]
[Source "ChessBase"]
[SourceQuality "1"]
[TimeControl "40/5400+30:1800+30"]

1. e4 {[%emt 0:00:00]} e6 {[%emt 0:00:53]} 2. d4 {[%emt 0:00:00]} d5 {[%emt 0:00:26]} 3. Nd2 {[%emt 0:00:00]} Nf6 {[%emt 0:00:19]} 4. e5 {[%emt 0:00:05]} Nfd7 {[%emt 0:00:05]} 5. c3 {[%emt 0:00:18]} c5 {[%emt 0:00:58]} 6. Bd3 {[%emt 0:00:09]} Nc6 {[%emt 0:00:20]} 7. Ne2 {[%emt 0:00:16]} cxd4 {[%emt 0:00:27]} 8. cxd4 {[%emt 0:00:03]} f6 {[%emt 0:01:49]} 9. exf6 {[%emt 0:09:42]} Nxf6 {[%emt 0:10:08]} 10. Nf3 {[%emt 0:01:52]} Bd6 {[%emt 0:00:51]} 11. O-O {[%emt 0:01:52]} Qc7 {[%emt 0:00:52]} 12. Qc2 {[%emt 0:01:38]} O-O {[%emt 0:02:31]} 13. Bg5 {[%emt 0:00:34]} h6 {[%emt 0:02:48]} 14. Bh4 {[%emt 0:00:02]} e5 {[%emt 0:05:45]} 15. dxe5 {[%emt 0:16:56]} Nxe5 {[%emt 0:00:39]} 16. Nxe5 {[%emt 0:01:14]} Qxc2 {[%emt 0:00:48]} 17. Bxc2 {[%emt 0:00:01]} Bxe5 {[%emt 0:00:07]} 18. Bb3 {[%emt 0:05:10]} Be6 {[%emt 0:12:16]} 19. Rad1 {[%emt 0:31:51]} Bxb2 {[%emt 0:06:59]} 20. Nf4 {[%emt 0:01:37]} Bf7 {[%emt 0:03:41]} 21. Nxd5 {[%emt 0:03:24]} g5 {[%emt 0:03:21]} 22. Bg3 {[%emt 0:04:21]} Nxd5 {[%emt 0:04:14]} 23. Bxd5 {[%emt 0:00:07]} Rad8 {[%emt 0:01:15]} 24. Bxf7+ {[%emt 0:05:21]} Kxf7 {[%emt 0:00:15]} 25. h4 {[%emt 0:02:47]} Bd4 {[%emt 0:02:21]} 26. Rd3 {[%emt 0:03:37]} Rd5 {[%emt 0:04:17]} 27. Rfd1 {[%emt 0:03:05]} Rfd8 {[%emt 0:00:41]} 28. Kf1 {[%emt 0:00:30]} Kf6 {[%emt 0:04:25]} 29. Bc7 {[%emt 0:02:10]} R8d7 {[%emt 0:00:18]} 30. Bb8 {[%emt 0:01:38]} Ke6 {[%emt 0:06:18]} 31. Re1+ {[%emt 0:00:45]} Kf6 {[%emt 0:01:25]} 32. Re4 {[%emt 0:01:04]} Bc5 {[%emt 0:01:53]} 33. hxg5+ {[%emt 0:00:54]} hxg5 {[%emt 0:00:27]} 34. Rf3+ {[%emt 0:00:34]} Kg7 {[%emt 0:02:02]} 35. Be5+ {[%emt 0:00:51]} Kg6 {[%emt 0:06:22]} 36. g4 {[%emt 0:00:47]} Rd1+ {[%emt 0:00:59]} 37. Kg2 {[%emt 0:00:38]} R1d2 {[%emt 0:01:27]} 38. Bc3 {[%emt 0:01:39]} R2d3 39. Rf6+ {[%emt 0:01:04]} Kh7 {[%emt 0:01:41]} 40. Be5 {[%emt 0:00:00]} Rd1 {[%emt 0:00:00]} 41. Rf5 {[%emt 0:06:48]} R7d2 {[%emt 0:21:57]} 42. Bc3 {[%emt 0:04:36]} Rd5 {[%emt 0:02:45]} 43. Rf7+ {[%emt 0:01:02]} Kg8 {[%emt 0:00:13]} 44. Rg7+ {[%emt 0:01:40]} Kf8 {[%emt 0:00:05]} 45. Rxb7 {[%emt 0:00:21]} Rd7 {[%emt 0:00:36]} 46. Rb5 {[%emt 0:00:12]} R1d5 {[%emt 0:01:08]} 47. Rxc5 {[%emt 0:00:19]} 1-0

[Event "POL-chT 2 Liga 2019"]
[Site "Poronin"]
[Date "2019.09.07"]
[Round "1.11"]
[White "Kolasinski, Krzysztof"]
[Black "Kwiatkowski, Wiktor"]
[Result "1/2-1/2"]
[ECO "E91"]
[WhiteElo "2104"]
[BlackElo "2011"]
[Annotator "ChessBase"]
[PlyCount "144"]
[EventDate "2019.09.07"]
[EventType "team-tourn"]
[EventCountry "POL"]
[SourceTitle "playchess.com"]
[Source "ChessBase"]
[SourceQuality "1"]
[TimeControl "40/5400+30:1800+30"]

1. d4 {[%emt 0:00:00]} Nf6 {[%emt 0:00:07]} 2. c4 {[%emt 0:00:00]} g6 {[%emt 0:00:08]} 3. Nc3 {[%emt 0:00:08]} Bg7 {[%emt 0:00:07]} 4. e4 {[%emt 0:00:08]} d6 {[%emt 0:00:06]} 5. Be2 {[%emt 0:00:10]} O-O {[%emt 0:00:20]} 6. Nf3 {[%emt 0:00:18]} c5 {[%emt 0:05:37]} 7. O-O {[%emt 0:00:15]} Nc6 {[%emt 0:05:53]} 8. d5 {[%emt 0:04:44]} Na5 {[%emt 0:00:12]} 9. h3 {[%emt 0:00:31]} a6 {[%emt 0:04:26]} 10. Bg5 {[%emt 0:11:45]} Rb8 {[%emt 0:07:37]} 11. Rb1 {[%emt 0:05:00]} h6 {[%emt 0:10:21]} 12. Bf4 {[%emt 0:03:33]} b5 {[%emt 0:01:54]} 13. cxb5 {[%emt 0:03:34]} axb5 {[%emt 0:00:13]} 14. b4 {[%emt 0:01:31]} cxb4 {[%emt 0:11:32]} 15. Rxb4 {[%emt 0:01:47]} Ba6 {[%emt 0:10:45]} 16. Qd2 {[%emt 0:04:01]} g5 {[%emt 0:03:33]} 17. Be3 {[%emt 0:00:07]} Nc4 {[%emt 0:06:44]} 18. Bxc4 {[%emt 0:00:39]} bxc4 {[%emt 0:00:02]} 19. Rxb8 {[%emt 0:00:12]} Qxb8 {[%emt 0:00:01]} 20. Nd4 {[%emt 0:00:37]} Qc7 {[%emt 0:03:53]} 21. Rc1 {[%emt 0:06:47]} Re8 {[%emt 0:08:59]} 22. Nf5 {[%emt 0:05:29]} Bf8 {[%emt 0:02:05]} 23. h4 {[%emt 0:05:53]} Bc8 {[%emt 0:03:59]} 24. hxg5 {[%emt 0:03:44]} hxg5 {[%emt 0:02:52]} 25. Ng3 {[%emt 0:13:07]} Ng4 {[%emt 0:05:34]} 26. Bd4 {[%emt 0:05:03]} f6 {[%emt 0:01:46]} 27. Nb5 {[%emt 0:01:56]} Qd7 {[%emt 0:00:55]} 28. a4 {[%emt 0:00:36]} Ba6 {[%emt 0:03:38]} 29. Qa5 {[%emt 0:03:16]} Bxb5 {[%emt 0:00:34]} 30. Qxb5 {[%emt 0:01:12]} Qxb5 {[%emt 0:00:13]} 31. axb5 {[%emt 0:00:02]} Rb8 {[%emt 0:00:30]} 32. b6 {[%emt 0:00:21]} Ne5 {[%emt 0:00:01]} 33. Ne2 {[%emt 0:05:02]} Nd7 {[%emt 0:01:22]} 34. Rb1 {[%emt 0:00:11]} Rb7 {[%emt 0:00:04]} 35. Nc3 {[%emt 0:00:16]} Bg7 {[%emt 0:00:54]} 36. Kf1 {[%emt 0:10:39]} f5 {[%emt 0:00:14]} 37. Bxg7 {[%emt 0:00:02]} Kxg7 {[%emt 0:00:01]} 38. Na4 {[%emt 0:01:37]} fxe4 {[%emt 0:00:32]} 39. Rb5 {[%emt 0:03:48]} Kf6 {[%emt 0:01:04]} 40. Ra5 {[%emt 0:00:00]} Nxb6 {[%emt 0:00:00]} 41. Rb5 {[%emt 0:06:51]} c3 {[%emt 0:11:35]} 42. Nxc3 {[%emt 0:00:15]} Rb8 {[%emt 0:03:33]} 43. Nxe4+ {[%emt 0:09:55]} Kf5 {[%emt 0:00:51]} 44. f3 {[%emt 0:05:13]} Nd7 {[%emt 0:00:34]} 45. Ra5 {[%emt 0:00:40]} Rb1+ {[%emt 0:09:35]} 46. Kf2 {[%emt 0:01:04]} Rb2+ {[%emt 0:00:16]} 47. Ke3 {[%emt 0:04:20]} Rxg2 {[%emt 0:01:19]} 48. Ra7 {[%emt 0:01:53]} Nf6 {[%emt 0:02:12]} 49. Kd4 {[%emt 0:01:56]} Nxe4 {[%emt 0:03:30]} 50. fxe4+ {[%emt 0:00:02]} Kf6 {[%emt 0:00:01]} 51. Ra8 {[%emt 0:00:15]} Rg3 {[%emt 0:02:19]} 52. Rf8+ {[%emt 0:01:41]} Kg7 {[%emt 0:00:05]} 53. Rf5 {[%emt 0:01:13]} Kg6 {[%emt 0:00:38]} 54. Rf8 {[%emt 0:00:11]} Ra3 {[%emt 0:01:04]} 55. Rg8+ {[%emt 0:00:08]} Kf6 {[%emt 0:00:09]} 56. Rf8+ {[%emt 0:00:17]} Kg7 {[%emt 0:00:33]} 57. Rf5 {[%emt 0:00:01]} Kg6 {[%emt 0:00:01]} 58. Rf8 {[%emt 0:00:06]} g4 {[%emt 0:01:23]} 59. Rg8+ {[%emt 0:00:12]} Kh5 {[%emt 0:00:31]} 60. Rg7 {[%emt 0:00:01]} Ra7 {[%emt 0:00:15]} 61. e5 {[%emt 0:00:20]} Ra4+ {[%emt 0:00:37]} 62. Ke3 {[%emt 0:00:07]} g3 {[%emt 0:00:37]} 63. Kf3 {[%emt 0:02:04]} dxe5 {[%emt 0:00:30]} 64. Rxe7 {[%emt 0:02:03]} Rf4+ {[%emt 0:00:31]} 65. Kxg3 {[%emt 0:00:07]} Rd4 {[%emt 0:00:27]} 66. Rxe5+ {[%emt 0:00:09]} Kg6 {[%emt 0:00:00]} 67. Kf3 {[%emt 0:00:40]} Kf6 {[%emt 0:00:29]} 68. Rh5 {[%emt 0:00:45]} Kg6 {[%emt 0:00:50]} 69. Ke3 {[%emt 0:00:22]} Rd1 {[%emt 0:00:10]} 70. Re5 {[%emt 0:01:39]} Kf6 {[%emt 0:00:07]} 71. Re6+ {[%emt 0:00:08]} Kf5 {[%emt 0:00:41]} 72. Rd6 {[%emt 0:00:23]} Ke5 {Ke4+} 1/2-1/2

[Event "POL-chT 2 Liga 2019"]
[Site "Poronin"]
[Date "2019.09.07"]
[Round "1.12"]
[White "Pastuszko, Kinga"]
[Black "Dmochowska, Agnieszka"]
[Result "1/2-1/2"]
[ECO "B32"]
[WhiteElo "1998"]
[BlackElo "2110"]
[Annotator "ChessBase"]
[PlyCount "92"]
[EventDate "2019.09.07"]
[EventType "team-tourn"]
[EventCountry "POL"]
[SourceTitle "playchess.com"]
[Source "ChessBase"]
[SourceQuality "1"]
[TimeControl "40/5400+30:1800+30"]

1. e4 {[%emt 0:00:12]} c5 {[%emt 0:00:00]} 2. Nf3 {[%emt 0:00:13]} Nc6 {[%emt 0:00:00]} 3. d4 {[%emt 0:00:16]} cxd4 {[%emt 0:00:00]} 4. Nxd4 {[%emt 0:00:07]} e5 {[%emt 0:00:00]} 5. Nb5 {[%emt 0:00:35]} d6 {[%emt 0:00:12]} 6. N1c3 {[%emt 0:00:54]} a6 {[%emt 0:00:15]} 7. Na3 {[%emt 0:00:38]} b5 {[%emt 0:00:06]} 8. Nd5 {[%emt 0:00:06]} Nge7 {[%emt 0:00:06]} 9. Bg5 {[%emt 0:06:58]} h6 {[%emt 0:00:36]} 10. Bxe7 {[%emt 0:09:37]} Bxe7 {[%emt 0:01:17]} 11. c3 {[%emt 0:00:39]} O-O {[%emt 0:00:33]} 12. g3 {[%emt 0:01:30]} Rb8 {[%emt 0:10:34]} 13. Nc2 {[%emt 0:03:12]} f5 {[%emt 0:06:45]} 14. Bg2 {[%emt 0:09:17]} Kh8 {[%emt 0:06:08]} 15. exf5 {[%emt 0:05:32]} Bxf5 {[%emt 0:00:15]} 16. Nce3 {[%emt 0:00:16]} Be6 {[%emt 0:10:53]} 17. O-O {[%emt 0:09:56]} b4 {[%emt 0:04:29]} 18. Be4 {[%emt 0:02:06]} bxc3 {[%emt 0:04:06]} 19. bxc3 {[%emt 0:01:08]} Bg5 {[%emt 0:03:11]} 20. Qh5 {[%emt 0:08:25]} Bf7 {[%emt 0:00:56]} 21. Qg4 {[%emt 0:12:55]} Ne7 {[%emt 0:12:20]} 22. Nxe7 {[%emt 0:08:53]} Qxe7 {[%emt 0:00:42]} 23. Nf5 {[%emt 0:00:17]} Qe6 {[%emt 0:02:10]} 24. h4 {[%emt 0:02:03]} Bf6 {[%emt 0:00:39]} 25. Rfd1 {[%emt 0:02:37]} Rb6 {[%emt 0:05:39]} 26. Bd5 {[%emt 0:06:26]} Qc8 {[%emt 0:03:37]} 27. Bxf7 {[%emt 0:01:12]} Rxf7 {[%emt 0:00:08]} 28. Qg6 {[%emt 0:02:09]} Rf8 {[%emt 0:08:50]} 29. Nxd6 {[%emt 0:00:29]} Qc7 {[%emt 0:11:15]} 30. Ne4 {[%emt 0:04:09]} Bxh4 {[%emt 0:05:06]} 31. Qg4 {[%emt 0:00:11]} Bg5 {[%emt 0:00:03]} 32. Nxg5 {[%emt 0:01:44]} hxg5 {[%emt 0:00:09]} 33. Qxg5 {[%emt 0:00:37]} Rh6 {[%emt 0:02:36]} 34. Qd2 {[%emt 0:01:06]} Qc8 {[%emt 0:02:15]} 35. Qd7 {[%emt 0:00:05]} Qxc3 {[%emt 0:00:06]} 36. Qd3 {[%emt 0:00:23]} Qc5 {[%emt 0:01:08]} 37. Rd2 {[%emt 0:00:31]} Qc8 {[%emt 0:00:14]} 38. Rad1 {[%emt 0:01:03]} Qh3 {[%emt 0:01:00]} 39. Qd5 {[%emt 0:00:24]} Qh2+ {[%emt 0:00:12]} 40. Kf1 {[%emt 0:00:00]} Qxg3 {[%emt 0:00:00]} 41. Qg2 {[%emt 0:03:12]} Qxg2+ {[%emt 0:09:40]} 42. Kxg2 {[%emt 0:00:06]} Rg6+ {[%emt 0:00:14]} 43. Kf1 {[%emt 0:00:28]} Rgf6 {[%emt 0:00:08]} 44. Re1 {[%emt 0:01:16]} Rf5 {[%emt 0:00:09]} 45. Ree2 {[%emt 0:03:56]} R8f6 {[%emt 0:00:43]} 46. Rd8+ {[%emt 0:00:25]} Kh7 {[%emt 0:00:43]} 1/2-1/2